bitfinex/quotes_BTCUSD_20250204
["timestamp","ask_amount","ask_price","bid_price","bid_amount"]
[1738706486592,0.207412,96426.0,96404.0,0.002]
[1738706486791,0.207442,96413.0,96404.0,0.002]
[1738706486946,0.207412,96426.0,96404.0,0.002]
[1738706487148,0.08295184,96427.0,96404.0,0.002]
[1738706487149,0.155593,96405.0,96404.0,0.002]
[1738706487576,0.33320318,96420.0,96391.0,0.00046668]
[1738706487816,0.155614,96392.0,96391.0,0.00046668]
[1738706487999,0.02116853,96418.0,96391.0,0.00046668]
[1738706488254,0.35337088,96419.0,96391.0,0.00046668]
[1738706488255,0.155613,96393.0,96391.0,0.00046668]
[1738706488509,0.155613,96393.0,96391.0,0.00146668]
[1738706488675,0.155613,96393.0,96391.0,0.00046668]
[1738706488877,0.207427,96419.0,96373.0,0.000107]
[1738706488878,0.15,96391.0,96373.0,0.000107]
[1738706489104,0.15564,96376.0,96373.0,0.000107]
[1738706489566,0.30987506,96390.0,96373.0,0.000107]
[1738706489567,0.20749,96390.0,96373.0,0.000107]
[1738706489767,0.15564,96376.0,96373.0,0.000107]
[1738706490011,0.155628,96384.0,96373.0,0.000107]
[1738706490223,0.207476,96397.0,96373.0,0.000107]
[1738706490427,0.15564,96377.0,96373.0,0.000107]
[1738706491176,0.155629,96383.0,96375.0,0.003037]
[1738706491387,0.155619,96389.0,96375.0,0.003037]
[1738706491582,0.00047129,96393.0,96375.0,0.001037]
[1738706491583,0.155623,96387.0,96375.0,0.001037]
[1738706491703,0.00047129,96393.0,96375.0,0.003037]
[1738706491904,0.207488,96391.0,96375.0,0.003037]
[1738706492117,0.155631,96382.0,96375.0,0.001037]
[1738706492314,0.155616,96391.0,96376.0,0.10238506]
[1738706492625,0.00047129,96393.0,96376.0,0.10362997]
[1738706492836,0.00047129,96393.0,96377.0,0.0012449]
[1738706493018,0.00047129,96393.0,96378.0,0.10362996]
[1738706493221,0.00047129,96393.0,96378.0,0.10238506]
[1738706493222,0.03061572,96393.0,96378.0,0.10238506]
[1738706493422,0.207491,96390.0,96378.0,0.10238506]
[1738706493623,0.155619,96389.0,96378.0,0.10238506]
[1738706493884,0.00047129,96393.0,96383.0,0.155627]
[1738706494113,0.00047129,96393.0,96384.0,0.10362996]
[1738706494313,0.00047129,96393.0,96384.0,0.10238506]
[1738706494491,0.00047129,96393.0,96391.0,0.155615]
[1738706494721,0.00047129,96393.0,96392.0,0.10362978]
[1738706495251,0.00047129,96393.0,96392.0,0.10362962]
[1738706496024,0.00047129,96393.0,96392.0,0.10462962]
[1738706497378,0.00047129,96393.0,96392.0,0.10338506]
[1738706497545,0.00047129,96393.0,96392.0,0.001]
[1738706497771,0.00047129,96393.0,96375.0,0.001037]
[1738706497772,0.155614,96392.0,96380.0,0.20751]
[1738706497974,0.00047129,96393.0,96392.0,0.001]
[1738706498189,0.15608329,96393.0,96392.0,0.001]
[1738706498753,0.15608329,96393.0,96375.0,0.001037]
[1738706498754,0.00047129,96393.0,96375.0,0.001037]
[1738706498938,0.00047129,96393.0,96392.0,0.155614]
[1738706499140,0.00047129,96393.0,96392.0,0.26024381]
[1738706499339,0.00047129,96393.0,96392.0,0.25899906]
[1738706500339,0.00047129,96393.0,96392.0,0.33799906]
[1738706500765,0.00047129,96393.0,96392.0,0.33699906]
[1738706501349,0.00047129,96393.0,96392.0,0.25799906]
[1738706502412,0.00047129,96393.0,96392.0,0.40799906]
[1738706503039,0.08295184,96427.0,96393.0,0.15]
[1738706503175,0.0830932,96416.0,96415.0,0.155577]
[1738706503383,0.0830932,96416.0,96415.0,0.25796206]
[1738706503582,0.00014136,96416.0,96415.0,0.25796206]
[1738706504613,0.00014136,96416.0,96415.0,0.10238506]
[1738706504883,0.00014136,96416.0,96386.0,0.207498]
[1738706505090,0.00014136,96416.0,96415.0,0.001]
[1738706505316,0.01036366,96416.0,96389.0,0.10238506]
[1738706505551,0.01036366,96416.0,96390.0,0.00124471]
[1738706505794,0.16593866,96416.0,96415.0,0.001]
[1738706506034,0.155617,96391.0,96384.0,0.0001068]
[1738706506238,0.207436,96415.0,96384.0,0.0001068]
[1738706506494,0.207438,96414.0,96384.0,0.0001068]
[1738706506728,0.0002245,96393.0,96384.0,0.0001068]
[1738706506965,0.155617,96391.0,96384.0,0.0001068]
[1738706507173,0.2077085,96393.0,96384.0,0.0001068]
[1738706507174,0.0002245,96393.0,96384.0,0.0001068]
[1738706507391,0.0002245,96393.0,96385.0,0.10238506]
[1738706507598,0.0002245,96393.0,96391.0,0.155615]
[1738706507842,0.0002245,96393.0,96392.0,0.10362969]
[1738706508257,0.0002245,96393.0,96392.0,0.30112969]
[1738706508373,0.0002245,96393.0,96392.0,0.32288506]
[1738706508572,0.0296687,96413.0,96412.0,0.305582]
[1738706508783,0.0106687,96413.0,96412.0,0.40796706]
[1738706509423,0.00014136,96416.0,96415.0,0.155577]
[1738706509716,0.00014136,96416.0,96415.0,0.40920623]
[1738706509925,0.00014136,96416.0,96415.0,0.40796206]
[1738706510365,0.0780932,96437.0,96415.0,0.25238506]
[1738706510552,0.0780932,96437.0,96416.0,0.10238506]
[1738706510755,0.0780932,96437.0,96419.0,0.207427]
[1738706510912,0.207406,96429.0,96395.0,0.00014136]
[1738706511123,0.0769,96438.0,96399.0,0.02076268]
[1738706511339,0.08295184,96441.0,96400.0,0.00124444]
[1738706511537,0.08295184,96441.0,96416.0,0.155575]
[1738706511538,0.155549,96433.0,96416.0,0.155575]
[1738706511758,0.29033184,96441.0,96424.0,0.155562]
[1738706511962,0.09330485,96441.0,96427.0,0.155557]
[1738706512160,0.207382,96440.0,96428.0,0.10238506]
[1738706512459,0.09330485,96441.0,96428.0,0.10238506]
[1738706512680,0.01035301,96441.0,96428.0,0.10238506]
[1738706512911,0.40860318,96460.0,96428.0,0.10238506]
[1738706512912,0.207352,96455.0,96429.0,0.00124428]
[1738706513089,0.00014154,96447.0,96430.0,0.10238506]
[1738706513287,0.00014154,96447.0,96431.0,0.00124413]
[1738706513486,0.00014154,96447.0,96445.0,0.155527]
[1738706513688,0.00014154,96447.0,96446.0,0.10362908]
[1738706514700,0.00014154,96447.0,96446.0,0.10238506]
[1738706515315,0.00014154,96447.0,96405.0,0.0461]
[1738706515509,0.00014154,96447.0,96425.0,0.207415]
[1738706515510,0.20751054,96447.0,96425.0,0.207415]
[1738706515801,0.155546,96434.0,96426.0,0.10238506]
[1738706516008,0.155537,96441.0,96426.0,0.10238506]
[1738706516223,0.08295184,96446.0,96427.0,0.00124428]
[1738706516400,0.01044905,96447.0,96428.0,0.1036293]
[1738706516401,0.00014154,96447.0,96428.0,0.1036293]
[1738706516850,0.00014154,96447.0,96445.0,0.155528]
[1738706517052,0.00014154,96447.0,96446.0,0.10238506]
[1738706517199,0.00014154,96447.0,96410.0,0.34329144]
[1738706517402,0.00014154,96447.0,96426.0,0.10238506]
[1738706517762,0.00014154,96447.0,96437.0,0.155541]
[1738706517966,0.00014154,96447.0,96427.0,0.00124421]
[1738706518176,0.00014154,96447.0,96429.0,0.207406]
[1738706518379,0.00014154,96447.0,96430.0,0.10362924]
[1738706518640,0.00014154,96447.0,96430.0,0.10238506]
[1738706518838,0.00014154,96447.0,96431.0,0.207402]
[1738706519172,0.00014154,96447.0,96432.0,0.10238506]
[1738706519394,0.00014154,96447.0,96431.0,0.10238506]
[1738706519395,0.155536,96441.0,96431.0,0.10238506]
[1738706519566,0.00014154,96447.0,96431.0,0.10238506]
[1738706519988,0.207375,96444.0,96419.0,0.207426]
[1738706520204,0.00014154,96447.0,96421.0,0.207423]
[1738706520409,0.00014154,96447.0,96386.0,0.01]
[1738706520410,0.00014154,96447.0,96422.0,0.10238506]
[1738706520629,0.00014154,96447.0,96423.0,0.207419]
[1738706520835,0.00014154,96447.0,96444.0,0.15553]
[1738706521035,0.00014154,96447.0,96445.0,0.25791306]
[1738706521450,0.00014154,96447.0,96446.0,0.00124404]
[1738706521637,0.00014154,96447.0,96446.0,0.1036291]
[1738706522264,0.00014154,96447.0,96446.0,0.10238506]
[1738706522473,0.00014154,96447.0,96426.0,0.0471]
[1738706522693,0.00014154,96447.0,96445.0,0.155528]
[1738706522900,0.00014154,96447.0,96399.0,0.0467]
[1738706522901,0.08295184,96443.0,96399.0,0.0467]
[1738706523113,0.00014154,96447.0,96403.0,0.10238506]
[1738706523312,0.155553,96431.0,96405.0,0.207458]
[1738706523465,0.00014154,96447.0,96406.0,0.10362947]
[1738706523666,0.155555,96429.0,96406.0,0.10362947]
[1738706523901,0.08295184,96442.0,96406.0,0.10362947]
[1738706524236,0.155556,96428.0,96407.0,0.00124442]
[1738706524430,0.15556,96426.0,96408.0,0.10238506]
[1738706524629,0.15556,96426.0,96409.0,0.00124449]
[1738706524833,0.08295184,96442.0,96410.0,0.10238506]
[1738706525068,0.08295184,96421.0,96382.0,0.0467]
[1738706525273,0.08295184,96421.0,96376.0,0.207518]
[1738706525274,0.1556,96401.0,96376.0,0.207518]
[1738706525473,0.1556,96401.0,96367.0,0.2076458]
[1738706525474,0.1556,96401.0,96374.0,0.207523]
[1738706525679,0.207459,96405.0,96367.0,0.0001068]
[1738706525980,0.1556,96401.0,96379.0,0.207512]
[1738706526156,0.01057872,96405.0,96372.0,0.207527]
[1738706526396,0.01057872,96405.0,96397.0,0.155606]
[1738706526595,0.01456,96419.0,96400.0,0.50014136]
[1738706526842,0.01456,96419.0,96401.0,0.10238506]
[1738706526843,0.01052287,96416.0,96401.0,0.10238506]
[1738706527044,0.17097883,96431.0,96402.0,0.00124462]
[1738706527253,0.17097883,96431.0,96403.0,0.10238506]
[1738706527459,0.155553,96430.0,96411.0,0.155583]
[1738706527666,0.18120217,96431.0,96411.0,0.10238506]
[1738706527875,0.10238506,96430.0,96400.0,0.50014136]
[1738706528110,0.1556,96401.0,96400.0,0.50014136]
[1738706529429,0.1566,96401.0,96400.0,0.50014136]
[1738706530668,0.16673229,96401.0,96400.0,0.50014136]
[1738706530865,0.55358278,96401.0,96400.0,0.50014136]
[1738706531086,0.55358278,96401.0,96400.0,0.49514136]
[1738706531458,0.24303229,96401.0,96400.0,0.49514136]
[1738706531869,0.16573229,96401.0,96400.0,0.49514136]
[1738706532075,0.16673229,96401.0,96400.0,0.49524826]
[1738706532277,0.26911735,96401.0,96400.0,0.49524826]
[1738706532793,0.26811735,96401.0,96400.0,0.49524826]
[1738706533233,0.51086919,96401.0,96400.0,0.4039673]
[1738706533473,0.51086919,96401.0,96400.0,0.27466803]
[1738706533675,0.63466919,96401.0,96400.0,0.25392103]
[1738706533874,0.63466919,96401.0,96400.0,0.21654942]
[1738706534077,0.65322204,96401.0,96400.0,0.21073004]
[1738706534279,0.65322204,96401.0,96400.0,0.02187935]
[1738706534491,0.305617,96390.0,96389.0,0.0001069]
[1738706534648,0.15564,96376.0,96375.0,0.0009302]
[1738706534846,0.25802506,96376.0,96375.0,0.0009302]
[1738706536013,0.25902506,96376.0,96375.0,0.0009302]
[1738706536206,0.15664,96376.0,96375.0,0.0009302]
[1738706536564,0.16709342,96376.0,96375.0,0.0009302]
[1738706536767,0.16609342,96376.0,96375.0,0.0001069]
[1738706536976,0.155635,96380.0,96375.0,0.0001069]
[1738706537176,0.155628,96384.0,96375.0,0.0001069]
[1738706537447,0.33320318,96400.0,96375.0,0.0001069]
[1738706537448,0.09308235,96399.0,96375.0,0.0001069]
[1738706537657,0.002,96376.0,96375.0,0.0001069]
[1738706537862,0.01432,96392.0,96375.0,0.0001069]
[1738706538048,0.155639,96377.0,96375.0,0.0001069]
[1738706539252,0.156639,96377.0,96375.0,0.0001069]
[1738706539868,0.157639,96377.0,96375.0,0.0001069]
[1738706540079,0.207522,96375.0,96310.0,4.307e-05]
[1738706540272,0.283835,96369.0,96367.0,0.00036439]
[1738706541258,0.207535,96369.0,96367.0,0.00036439]
[1738706541460,0.209535,96369.0,96367.0,0.00036439]
[1738706541880,0.207535,96369.0,96367.0,0.00036439]
[1738706542079,0.157651,96369.0,96367.0,0.00036439]
[1738706542336,0.06766123,96377.0,96367.0,0.00036439]
[1738706542482,0.155646,96373.0,96367.0,0.00036439]
[1738706542824,0.05246644,96376.0,96367.0,0.00036439]
[1738706543025,0.1548515,96376.0,96367.0,0.00036439]
[1738706543225,0.155652,96369.0,96367.0,0.00036439]
[1738706543784,0.001,96369.0,96367.0,0.00036439]
[1738706543989,0.01039443,96377.0,96367.0,0.00036439]
[1738706544232,0.155647,96372.0,96367.0,0.00036439]
[1738706544441,0.54071618,96380.0,96367.0,0.00036439]
[1738706544586,0.155647,96372.0,96367.0,0.00036439]
[1738706544786,0.207516,96378.0,96367.0,0.00036439]
[1738706544988,0.34367422,96380.0,96367.0,0.00036439]
[1738706545177,0.155652,96369.0,96367.0,0.00047139]
[1738706545528,0.00022471,96376.0,96367.0,0.00047139]
[1738706545731,0.155642,96375.0,96367.0,0.00047139]
[1738706545931,0.00022471,96376.0,96367.0,0.00047139]
[1738706546290,0.155652,96369.0,96367.0,0.00047139]
[1738706546683,0.00022471,96376.0,96367.0,0.00047139]
[1738706547045,0.155653,96368.0,96367.0,0.00047139]
[1738706548608,0.00022471,96376.0,96367.0,0.00047139]
[1738706548798,0.00022471,96376.0,96369.0,0.15565]
[1738706549006,0.00022471,96376.0,96367.0,0.00047139]
[1738706549207,0.155644,96374.0,96367.0,0.00047139]
[1738706549437,0.155643,96374.0,96367.0,0.00047139]
[1738706549634,0.0106471,96376.0,96367.0,0.00047139]
[1738706549950,0.0106471,96376.0,96368.0,0.207537]
[1738706550171,0.0106471,96376.0,96371.0,0.155647]
[1738706550351,0.0106471,96376.0,96374.0,0.15554888]
[1738706550558,0.0106471,96376.0,96367.0,0.00047139]
[1738706550961,0.0106471,96376.0,96368.0,0.207537]
[1738706551159,0.0106471,96376.0,96367.0,0.00047139]
[1738706551359,0.0106471,96376.0,96370.0,0.155648]
[1738706551579,0.0106471,96376.0,96367.0,0.00047139]
[1738706551778,0.0185302,96388.0,96367.0,0.00047139]
[1738706551997,0.0185302,96388.0,96368.0,0.10238506]
[1738706551998,0.1741522,96388.0,96368.0,0.10238506]
[1738706552201,0.1741522,96388.0,96382.0,0.155629]
[1738706552202,0.02891036,96388.0,96382.0,0.155629]
[1738706552549,0.02891036,96388.0,96368.0,0.10238506]
[1738706552766,0.0185302,96387.0,96386.0,0.155622]
[1738706552965,0.0185302,96387.0,96386.0,0.25925191]
[1738706553146,0.0185302,96387.0,96386.0,0.25800706]
[1738706553588,0.0185302,96387.0,96386.0,0.38480706]
[1738706553788,0.01016904,96401.0,96386.0,0.38480706]
[1738706553789,0.08295184,96409.0,96408.0,0.155588]
[1738706553927,0.08295184,96409.0,96408.0,0.25797306]
[1738706554347,0.01404,96424.0,96408.0,0.25797306]
[1738706554348,0.01043294,96418.0,96416.0,0.155575]
[1738706554661,0.155571,96419.0,96387.0,0.207496]
[1738706554867,0.01404,96424.0,96418.0,0.155571]
[1738706555068,0.08295184,96419.0,96391.0,0.10238506]
[1738706555250,0.207427,96419.0,96397.0,0.155605]
[1738706555447,0.30981506,96418.0,96371.0,0.0807]
[1738706555645,0.155618,96390.0,96381.0,0.155631]
[1738706555889,0.33320318,96410.0,96373.0,0.207527]
[1738706556201,0.284332,96417.0,96375.0,0.207522]
[1738706556202,0.207449,96409.0,96375.0,0.207522]
[1738706556331,0.08295184,96416.0,96376.0,0.10362992]
[1738706556533,0.10238506,96415.0,96376.0,0.10238506]
[1738706556727,0.20744,96413.0,96391.0,0.155616]
[1738706556996,0.155604,96399.0,96388.0,0.207494]
[1738706557172,0.00047165,96413.0,96389.0,0.10238506]
[1738706557374,0.00047165,96413.0,96390.0,0.00124479]
[1738706557577,0.00047165,96413.0,96392.0,0.207486]
[1738706557798,0.155585,96411.0,96405.0,0.155593]
[1738706557951,0.155585,96411.0,96402.0,0.207463]
[1738706558131,0.155583,96411.0,96403.0,0.155596]
[1738706558381,0.06139292,96412.0,96393.0,0.10238506]
[1738706558382,0.06139292,96412.0,96393.0,0.30986706]
[1738706558699,0.06139292,96412.0,96406.0,0.15559]
[1738706558887,0.01058625,96413.0,96394.0,0.20872471]
[1738706559130,0.16616625,96413.0,96406.0,0.155591]
[1738706559281,0.01058625,96413.0,96403.0,0.207461]
[1738706559493,0.155582,96412.0,96405.0,0.155592]
[1738706559725,0.01058625,96413.0,96395.0,0.10238506]
[1738706560174,0.01058625,96413.0,96406.0,0.155591]
[1738706560401,0.01058625,96413.0,96412.0,0.155582]
[1738706560595,0.01058625,96413.0,96409.0,0.155586]
[1738706560799,0.01058625,96413.0,96411.0,0.155583]
[1738706561003,0.00047165,96413.0,96412.0,0.155582]
[1738706561410,0.155591,96407.0,96399.0,0.155602]
[1738706561617,0.00047165,96413.0,96399.0,0.155602]
[1738706561830,0.00047165,96413.0,96373.0,0.02098439]
[1738706561969,0.00047165,96413.0,96378.0,0.415032]
[1738706562169,0.15605265,96413.0,96404.0,0.155593]
[1738706562376,0.155582,96412.0,96404.0,0.155594]
[1738706562570,0.155584,96411.0,96404.0,0.155594]
[1738706562774,0.00047165,96413.0,96412.0,0.155582]
[1738706562997,0.00047165,96413.0,96412.0,0.25796706]
[1738706564310,0.00047165,96413.0,96412.0,0.40796706]
[1738706564560,0.08295184,96442.0,96413.0,0.279]
[1738706564709,0.08309331,96442.0,96441.0,0.155535]
[1738706564911,0.08309331,96442.0,96441.0,0.45566413]
[1738706565136,0.00014147,96442.0,96441.0,0.45442006]
[1738706565875,0.00014147,96442.0,96441.0,0.53632006]
[1738706566372,0.0002245,96447.0,96441.0,0.53632006]
[1738706566528,0.0002245,96447.0,96446.0,0.40791206]
[1738706566726,0.0002245,96447.0,96446.0,0.25791206]
[1738706566938,0.00012185,96447.0,96446.0,0.25791206]
[1738706567134,0.00012185,96447.0,96427.0,0.01056534]
[1738706567342,0.00012185,96447.0,96413.0,0.0496]
[1738706567343,0.00012185,96447.0,96432.0,0.00014147]
[1738706567538,0.00012185,96447.0,96445.0,0.155527]
[1738706567739,0.00012185,96447.0,96440.0,0.207381]
[1738706567951,0.00012185,96447.0,96441.0,0.10238506]
[1738706568158,0.0002245,96442.0,96432.0,0.00014147]
[1738706568360,0.155548,96434.0,96432.0,0.00014147]
[1738706568987,0.25793306,96434.0,96432.0,0.00014147]
[1738706569219,0.25238506,96433.0,96432.0,0.00014147]
[1738706569423,0.023,96419.0,96367.0,0.000107]
[1738706569653,0.15,96414.0,96367.0,0.000107]
[1738706569852,0.15565,96370.0,96367.0,0.000107]
[1738706570055,0.169226,96385.0,96368.0,0.10238506]
[1738706570261,0.0136,96385.0,96368.0,0.10238506]
[1738706570469,0.0136,96385.0,96368.0,0.10363011]
[1738706570669,0.0136,96385.0,96383.0,0.155628]
[1738706571093,0.29039684,96412.0,96396.0,0.155607]
[1738706571294,0.155589,96408.0,96397.0,0.155605]
[1738706571526,0.155595,96405.0,96395.0,0.155609]
[1738706571732,0.155588,96409.0,96398.0,0.155603]
[1738706571938,0.01016041,96412.0,96398.0,0.10238506]
[1738706572169,0.01016041,96412.0,96405.0,0.155593]
[1738706572384,0.01356,96422.0,96398.0,0.10238506]
[1738706572586,0.01356,96422.0,96412.0,0.155581]
[1738706572587,0.01027413,96419.0,96412.0,0.155581]
[1738706572791,0.155577,96415.0,96399.0,0.10238506]
[1738706572970,0.155577,96415.0,96407.0,0.155589]
[1738706573400,0.002,96412.0,96407.0,0.155589]
[1738706573611,0.002,96412.0,96401.0,0.155598]
[1738706573809,0.00214134,96412.0,96402.0,0.10238506]
[1738706574010,0.00214134,96412.0,96410.0,0.155584]
[1738706574147,0.00014134,96412.0,96406.0,0.207454]
[1738706574353,0.00014134,96412.0,96402.0,0.10238506]
[1738706574765,0.155585,96411.0,96402.0,0.25798206]
[1738706574964,0.00014134,96412.0,96402.0,0.10238506]
[1738706575218,0.00014134,96412.0,96407.0,0.155588]
[1738706575360,0.00014134,96412.0,96402.0,0.11260925]
[1738706575576,0.00014134,96412.0,96411.0,0.155583]
[1738706575779,1.85436708,96381.0,96380.0,0.33320318]
[1738706575976,0.48061208,96381.0,96380.0,0.43558824]
[1738706576343,0.10710611,96381.0,96380.0,0.63422124]
[1738706576574,0.08295184,96423.0,96422.0,0.155566]
[1738706576778,0.08295184,96423.0,96422.0,0.25795106]
[1738706577001,0.00124467,96441.0,96422.0,0.10238506]
[1738706577200,0.00138609,96441.0,96423.0,0.10238506]
[1738706577641,0.00138609,96441.0,96424.0,0.207417]
[1738706577828,0.00138609,96441.0,96428.0,0.155556]
[1738706578032,0.155552,96431.0,96415.0,0.155576]
[1738706578238,0.43683291,96430.0,96375.0,0.02031454]
[1738706578375,0.15,96426.0,96367.0,0.000107]
[1738706578575,0.155597,96403.0,96385.0,0.2075]
[1738706578783,0.15,96416.0,96368.0,0.10238506]
[1738706578784,0.0496,96401.0,96368.0,0.10238506]
[1738706578983,0.00124467,96402.0,96367.0,0.000107]
[1738706578984,0.15,96398.0,96367.0,0.000107]
[1738706579184,0.155652,96369.0,96367.0,0.000107]
[1738706579384,0.12444467,96368.0,96367.0,0.000107]
[1738706579592,0.1232,96368.0,96367.0,0.000107]
[1738706580015,0.278853,96368.0,96367.0,0.00057865]
[1738706580697,0.32852899,96368.0,96367.0,0.00057865]
[1738706580897,0.32852899,96368.0,96336.0,0.005]
[1738706580898,0.42526105,96368.0,96336.0,0.005]
[1738706581112,0.15,96365.0,96336.0,0.005]
[1738706581315,0.10362973,96364.0,96336.0,0.005]
[1738706581529,0.023,96355.0,96336.0,0.005]
[1738706581719,0.155694,96343.0,96336.0,0.005]
[1738706581864,0.207566,96355.0,96336.0,0.005]
[1738706582208,0.15569,96346.0,96336.0,0.005]
[1738706582508,0.00124467,96352.0,96336.0,0.005]
[1738706582715,0.077,96359.0,96353.0,0.155676]
[1738706582915,0.077,96359.0,96338.0,0.10363062]
[1738706583252,0.00047107,96368.0,96338.0,0.10363062]
[1738706583253,0.00047107,96368.0,96339.0,0.00124532]
[1738706583432,0.00047107,96368.0,96358.0,0.207557]
[1738706583639,1.0,96342.0,96341.0,0.155696]
[1738706583844,1.0,96342.0,96341.0,0.61567606]
[1738706584243,0.916964,96342.0,96341.0,0.62617821]
[1738706584446,0.00047107,96368.0,96367.0,0.155654]
[1738706585550,0.00047107,96368.0,96354.0,0.155675]
[1738706585770,0.00047107,96368.0,96361.0,0.155663]
[1738706585944,0.00047107,96368.0,96358.0,0.155669]
[1738706586167,0.00047107,96368.0,96354.0,0.10238506]
[1738706586289,0.00047107,96368.0,96366.0,0.155656]
[1738706587661,0.00047107,96368.0,96356.0,0.207562]
[1738706587801,0.00047107,96368.0,96357.0,0.10238506]
[1738706588003,0.00047107,96368.0,96367.0,0.155654]
[1738706588204,0.00047107,96368.0,96367.0,0.25928418]
[1738706588404,0.00047107,96368.0,96367.0,0.25803906]
[1738706588845,0.02797107,96394.0,96393.0,0.155612]
[1738706589166,0.0818,96411.0,96398.0,0.155604]
[1738706589365,0.0818,96411.0,96397.0,0.207475]
[1738706589592,0.0818,96411.0,96397.0,0.10238506]
[1738706589833,0.0818,96411.0,96398.0,0.363077]
[1738706590007,0.0818,96411.0,96397.0,0.10238506]
[1738706590218,0.155598,96402.0,96370.0,0.207532]
[1738706590445,0.155598,96402.0,96351.0,0.33046]
[1738706590446,0.155587,96409.0,96371.0,0.10362997]
[1738706590665,0.08194134,96411.0,96400.0,0.155601]
[1738706590865,0.08194134,96411.0,96379.0,0.363149]
[1738706591134,0.08194134,96411.0,96380.0,0.10362975]
[1738706591377,0.155589,96408.0,96393.0,0.155611]
[1738706591585,0.00124467,96410.0,96382.0,0.207507]
[1738706591797,0.08194134,96411.0,96394.0,0.10238506]
[1738706592030,0.08194134,96411.0,96395.0,0.00124469]
[1738706592223,0.08194134,96411.0,96405.0,0.155592]
[1738706592345,0.08194134,96411.0,96403.0,0.155596]
[1738706592547,0.08194134,96411.0,96396.0,0.10238506]
[1738706592751,0.08194134,96411.0,96396.0,0.10362974]
[1738706593199,0.08194134,96411.0,96396.0,0.10238506]
[1738706593764,0.08194134,96411.0,96404.0,0.155594]
[1738706594027,0.08194134,96411.0,96399.0,0.207469]
[1738706594241,0.08194134,96411.0,96409.0,0.155587]
[1738706594449,0.00014134,96411.0,96409.0,0.25797206]
[1738706594650,0.00014134,96411.0,96410.0,0.10362959]
[1738706595635,0.00014134,96411.0,96410.0,0.25362959]
[1738706595836,0.00014134,96411.0,96410.0,0.25238506]
[1738706596421,0.08295184,96438.0,96437.0,0.155541]
[1738706596626,0.08295184,96438.0,96437.0,0.25792606]
[1738706596854,0.0002245,96442.0,96441.0,0.155535]
[1738706597057,0.00036597,96442.0,96441.0,0.25792006]
[1738706597756,0.00036597,96442.0,96441.0,0.155535]
[1738706597959,0.00036597,96442.0,96391.0,0.0719]
[1738706598171,0.0495,96440.0,96407.0,0.207452]
[1738706598395,0.155583,96412.0,96370.0,0.33320318]
[1738706598575,0.10362973,96439.0,96384.0,0.10238506]
[1738706598576,0.155568,96421.0,96384.0,0.10238506]
[1738706598782,0.15557,96419.0,96407.0,0.155589]
[1738706598981,0.207407,96429.0,96386.0,0.207499]
[1738706599181,0.10238506,96439.0,96418.0,0.155571]
[1738706599182,0.155552,96431.0,96418.0,0.155571]
[1738706599380,0.13245184,96440.0,96418.0,0.10238506]
[1738706599614,0.13245184,96440.0,96390.0,0.33320318]
[1738706599615,0.13245184,96440.0,96419.0,0.10362952]
[1738706599819,0.04964147,96440.0,96420.0,0.00124432]
[1738706600024,0.04964147,96440.0,96430.0,0.155552]
[1738706600246,0.04964147,96440.0,96399.0,0.01287133]
[1738706600415,0.04964147,96440.0,96430.0,0.155552]
[1738706600620,0.20739,96437.0,96423.0,0.155564]
[1738706600838,0.00124467,96436.0,96403.0,0.0012444]
[1738706601052,0.04964147,96440.0,96404.0,0.10238506]
[1738706601262,0.155564,96423.0,96405.0,0.207458]
[1738706601436,0.155564,96423.0,96406.0,0.10238506]
[1738706601681,0.00124467,96437.0,96407.0,0.00124454]
[1738706601890,0.155548,96433.0,96422.0,0.155565]
[1738706602124,0.13259331,96440.0,96408.0,0.10238506]
[1738706602277,0.00124467,96439.0,96408.0,0.10238506]
[1738706602477,0.04964147,96440.0,96410.0,0.207447]
[1738706602727,0.04964147,96440.0,96411.0,0.10362937]
[1738706602922,0.155543,96437.0,96423.0,0.155563]
[1738706603138,0.155543,96437.0,96392.0,0.00124432]
[1738706603139,0.10362973,96436.0,96379.0,0.01273608]
[1738706603367,0.155599,96402.0,96380.0,0.10238506]
[1738706603540,0.10238506,96436.0,96373.0,0.155644]
[1738706603541,0.15,96400.0,96373.0,0.155644]
[1738706603749,0.207473,96398.0,96338.0,0.08295184]
[1738706603925,0.1277,96401.0,96338.0,0.08295184]
[1738706603926,0.00124467,96397.0,96355.0,0.10363007]
[1738706604130,0.1277,96401.0,96355.0,0.10363007]
[1738706604339,0.1277,96401.0,96399.0,0.155602]
[1738706604721,0.0484,96401.0,96399.0,0.155602]
[1738706604924,0.233481,96413.0,96402.0,0.155597]
[1738706605158,0.0779,96413.0,96403.0,0.10238506]
[1738706605349,0.00022428,96411.0,96403.0,0.10238506]
[1738706605551,0.00022428,96411.0,96409.0,0.155586]
[1738706606034,0.00022428,96411.0,96403.0,0.10238506]
[1738706606035,0.00022428,96411.0,96406.0,0.15559]
[1738706606235,0.00022428,96411.0,96372.0,0.207528]
[1738706606419,0.15559,96407.0,96396.0,0.00014134]
[1738706606613,0.00124467,96406.0,96396.0,0.00014134]
[1738706606818,0.00022428,96411.0,96396.0,0.00014134]
[1738706606819,0.00146895,96411.0,96396.0,0.00014134]
[1738706607017,0.155599,96402.0,96396.0,0.00014134]
[1738706607237,0.00124467,96408.0,96396.0,0.00014134]
[1738706607674,0.155606,96397.0,96396.0,0.00014134]
[1738706607875,0.20645067,96397.0,96396.0,0.00014134]
[1738706608243,0.205206,96397.0,96396.0,0.00014134]
[1738706608862,0.286706,96397.0,96396.0,0.00014134]
[1738706609091,0.47261546,96397.0,96396.0,0.00014134]
[1738706609300,0.40245106,96397.0,96396.0,0.00014134]
[1738706609501,0.14446,96397.0,96396.0,0.00014134]
[1738706609673,0.1311,96397.0,96396.0,0.00014134]
[1738706609910,0.0496,96397.0,96396.0,0.00014134]
[1738706610116,0.0815,96409.0,96396.0,0.00014134]
[1738706610292,0.00124467,96408.0,96396.0,0.00014134]
[1738706610512,0.155593,96405.0,96396.0,0.00014134]
[1738706610724,0.04715777,96404.0,96396.0,0.00014134]
[1738706610897,0.155605,96398.0,96396.0,0.00014134]
[1738706611133,0.00124467,96397.0,96396.0,0.00014134]
[1738706611866,0.15,96396.0,96338.0,0.08295184]
[1738706612066,0.145673,96356.0,96354.0,0.00057787]
[1738706612266,0.00124467,96358.0,96354.0,0.00057787]
[1738706612538,0.0783,96359.0,96354.0,0.00057787]
[1738706612952,0.155673,96356.0,96354.0,0.00057787]
[1738706613364,0.00124467,96355.0,96354.0,0.00057787]
[1738706614330,0.155674,96356.0,96354.0,0.00057787]